Cogmind - Beta 14 @@@ ROGUE MODE // 2024.09.18 @ 15:05:05 Player: Dull Result: Destroyed by 9U-41L(R) with Subdweller Machine Gun Performance ------------- Evolutions (0) 0 Regions Visited (2) 400 Robots Destroyed (34) 170 Value Destroyed (770) 770 Prototype IDs (2) 40 Alien Tech Used (0) 0 Bonus (0) 0 TOTAL SCORE: 1380 Bonus ------- None Cogmind --------- Core Integrity 0/250 Matter 91/300 Energy 84/100 System Corruption 1% Temperature Cool (0) Movement Treading (240) Ox1 Location -10/Subcaves Parts ------- > --- POWER (1) -------- (None) > --- PROPULSION (2) --- Light Treads Light Treads > --- UTILITY (2) ------ Cooling System High-capacity Storage Unit > --- WEAPON (2) ------- Heavy Battle Rifle Light Cannon > --- INVENTORY (20) --- Improved Treads Improved Treads Improved Treads Improved Treads Wheel Cooling System Cooling System Medium Storage Unit High-capacity Matter Pod (136) Hacking Suite Small Laser Beam Cannon Grenade Launcher Grenade Launcher Grenade Launcher Heavy Hammer Peak State ------------ > --- POWER ------------ Subdweller Power Source > --- PROPULSION ------- Light Treads Light Treads > --- UTILITY ---------- High-capacity Storage Unit Improved Terrain Scanner > --- WEAPON ----------- Heavy Battle Rifle Light Cannon > --- INVENTORY -------- Light Ion Engine Light Treads Improved Treads Improved Treads Improved Treads Improved Treads Wheel Cooling System Cooling System Cooling System Medium Storage Unit High-capacity Matter Pod Hacking Suite Small Laser Beam Cannon Light Cannon Grenade Launcher Grenade Launcher Grenade Launcher Heavy Hammer [Rating: 16] Favorites ----------- Power Light Ion Engine Engine Light Ion Engine Propulsion Light Treads Treads Light Treads Leg Aluminum Leg Utility High-capacity Storage Unit Device Cooling System Storage High-capacity Storage Unit Protection Light Armor Plating Weapon Small Laser Energy Gun Small Laser Energy Cannon Beam Cannon Ballistic Gun Assault Rifle Ballistic Cannon Light Cannon Launcher Grenade Launcher Special Weapon Mining Laser Impact Weapon Heavy Hammer Build | -11 -10 -10 ------- Run | Yrd Mat Sub Slots Evolved . | . . . Power . | . . . Propulsion . | . . . Utility . | . . . Weapon . | . . . Parts Attached 41 | 1 24 16 Power 11 | . 5 6 Engine 11 | . 5 6 Core . | . . . Reactor . | . . . Propulsion 7 | . 6 1 Treads 7 | . 6 1 Leg . | . . . Wheel . | . . . Hover . | . . . Flight . | . . . Utility 9 | 1 5 3 Device 5 | 1 2 2 Storage 3 | . 2 1 Processor . | . . . Hackware . | . . . Protection 1 | . 1 . Artifact . | . . . Weapon 14 | . 8 6 Energy Gun 1 | . 1 . Energy Cannon 1 | . . 1 Ballistic Gun 4 | . 3 1 Ballistic Cannon 3 | . 1 2 Launcher 2 | . . 2 Special Weapon 2 | . 2 . Impact Weapon 1 | . 1 . Slashing Weapon . | . . . Piercing Weapon . | . . . Special Melee Weapon . | . . . Unidentified Prototypes . | . . . Parts Lost 8 | . 2 6 Power 3 | . 1 2 Propulsion 1 | . . 1 Utility 2 | . . 2 Weapon 2 | . 1 1 Highest Loss Streak 2 | . 1 2 To Critical Strikes 1 | . 1 . Average Slot Usage (%) 97 | . 99 92 Engine 11 | . 13 7 Treads 27 | . 28 27 Device 9 | . 10 8 Storage 14 | . 14 14 Protection 3 | . 3 5 Energy Gun 10 | . 14 5 Ballistic Gun 9 | . 10 8 Ballistic Cannon 6 | . 3 13 Peak Build Rating 16 | 9 11 16 Average Rating 10 | 7 9 11 On Entrance 8 | 6 9 10 Naked Turns . | . . . Heaviest Build 53 | 12 50 53 Greatest Support 40 | 20 40 40 Greatest Overweight (x) 1 | . 1 1 Average Overweight (x) . | . . 1 Largest Inventory Capacity 20 | 8 20 20 Average Capacity 17 | 8 16 20 Most Carried 20 | 6 20 20 Average Carried 15 | 6 13 18 Final Capacity 20 | 8 20 20 Final Carried 20 | 6 20 16 Class Distribution -------------------- 100% | Mutant Dominant Class ---------------- Mutant | -10/Materials Mutant | -10/Subcaves Resources | -11 -10 -10 ----------- Run | Yrd Mat Sub Matter Collected 989 | 213 577 199 Remotely . | . . . Salvage Created 903 | 12 698 193 Parts 68 | 3 48 17 Haulers Intercepted 2 | . 2 . Recyclers Shooed 1 | . 1 . Parts Field Recycled . | . . . Retrieved Matter . | . . . Parts Self-Destructed 7 | . . 7 Prevented . | . . . Kills | -11 -10 -10 ------- Run | Yrd Mat Sub Combat Hostiles Destroyed 23 | . 15 8 Guns 20 | . 14 6 Cannons 3 | . 1 2 Classes Destroyed 8 | 1 5 2 Tunneler 1 | 1 . . Hauler 2 | . 2 . Operator 3 | . 3 . Turret 2 | . . 2 Watcher 3 | . 3 . Swarmer 9 | . 5 4 Grunt 10 | . 10 . Subdweller 4 | . . 4 Best Kill Streak 4 | 1 2 4 Combat Bots Only 4 | . 2 4 Max Kills in Single Turn 1 | 1 1 1 Gunslinging . | . . . Exploded . | . . . Melee . | . . . Uniques/NPCs Destroyed . | . . . Combat | -11 -10 -10 -------- Run | Yrd Mat Sub Hostile Shots Fired 189 | . 76 113 Missed 69 | . 24 45 Damage Taken 1501 | . 523 978 Core 272 | . 62 210 Absorbed by Shields . | . . . Core Remaining (%) 100 | 100 . . Volleys Fired 102 | 1 73 28 Largest 2 | 2 2 2 Hottest 100 | 60 100 75 Shots Fired 196 | 2 138 56 Gun 151 | 2 127 22 Cannon 30 | . 8 22 Launcher 12 | . . 12 Special 3 | . 3 . Kinetic 107 | 1 69 37 Thermal 77 | 1 69 7 Explosive 12 | . . 12 Electromagnetic . | . . . Robot Hit Streak 8 | 1 8 6 Robot Miss Streak 3 | . 3 2 Penetration Max . | . . . Secondary Targets 1 | . 1 . Max Gunslinging Chain 1 | . 1 . Shots Hit Robots 106 | 1 79 26 Core Hits 60 | 1 35 24 Critical Kills 1 | . . 1 Critical Parts Destroyed . | . . . Critical Strikes 3 | . . 3 Destroy 1 | . . 1 Blast 2 | . . 2 Melee Attacks 2 | . 2 . Impact 2 | . 2 . Slashing . | . . . Piercing . | . . . Sneak Attacks . | . . . Combat Hostiles . | . . . Follow-up Attacks . | . . . Damage Inflicted 1725 | 11 993 721 Guns 1176 | 11 872 293 Cannons 289 | . 108 181 Explosions 247 | . . 247 Melee . | . . . Ramming 13 | . 13 . Kinetic 967 | . 548 419 Thermal 498 | 11 432 55 Explosive 247 | . . 247 Electromagnetic . | . . . Impact . | . . . Slashing . | . . . Piercing . | . . . Highest Corruption 1 | . 1 1 Average Corruption 1 | . 1 1 Corruption Purged . | . . . Corruption Blocked . | . . . Effects 30 | . 19 11 Message Errors 4 | . 2 2 Matter Fused 4 | . 4 . Heat Flow Errors 9 | . 5 4 Energy Discharges 4 | . 2 2 Data Loss (minor) 4 | . 1 3 Data Loss (major) 4 | . 4 . Weapon Failures 1 | . 1 . Overload Shots . | . . . Overflow Damage 15 | . 11 4 Projectiles 11 | . 11 . Explosions 4 | . . 4 Melee . | . . . Knockbacks . | . . . Impact . | . . . Kinetic . | . . . Secondary . | . . . Self-Inflicted Damage . | . . . Shots . | . . . Rammed 2 | . 2 . Targets Rammed 2 | . 2 . Kicked . | . . . Crushed . | . . . Highest Temperature 241 | . 241 215 Average Temperature 80 | . 80 83 Received Heat Transfer 453 | . 171 282 Siege Activations . | . . . Robots Corrupted . | . . . Combat Hostiles . | . . . Parts Fried . | . . . Impact Corruptions . | . . . Robots Melted . | . . . Combat Hostiles . | . . . Parts Melted 1 | . 1 . Heat Transferred 1125 | 25 975 125 Parts Sabotaged . | . . . Parts Stolen . | . . . Parts Stripped . | . . . Power Chain Reactions . | . . . Alert | -11 -10 -10 ------- Run | Yrd Mat Sub Peak Influence 176 | 5 176 . Initial 3 | . 3 . Average 77 | 4 77 . Maximum Alert Level . | . . . Low Security (%) 100 | 100 100 . Level 1 . | . . . Level 2 . | . . . Level 3 . | . . . Level 4 . | . . . Level 5 . | . . . High Security . | . . . Max Security . | . . . Squads Dispatched 3 | . 3 . Investigation . | . . . Extermination . | . . . Reinforcement 3 | . 3 . Assault . | . . . Garrison . | . . . Intercept . | . . . Searches Triggered . | . . . Construction Impeded . | . . . Haulers Reinforced . | . . . Active Scanning Responses . | . . . Cargo Convoy Interrupts . | . . . Stealth | -11 -10 -10 --------- Run | Yrd Mat Sub Distress Signals 1 | . 1 . Communications Jammed . | . . . Distress Signals . | . . . Times Spotted 47 | . 32 15 Peak Tracking Total 6 | . 5 6 Tactical Retreats 6 | . 3 3 Traps | -11 -10 -10 ------- Run | Yrd Mat Sub Traps Triggered 5 | . 1 4 Indirectly . | . . . Trap Hack Attempts . | . . . Triggered . | . . . Disarmed . | . . . Reprogrammed . | . . . Reused . | . . . Traps Extracted . | . . . Installed . | . . . Triggered . | . . . Machines | -11 -10 -10 ---------- Run | Yrd Mat Sub Machines Disabled 4 | . . 4 Max in Single Turn 3 | . . 3 Machines Repaired . | . . . Machines Dismantled . | . . . Machines Sabotaged . | . . . Overloaded Fab Kills . | . . . Hacking | -11 -10 -10 --------- Run | Yrd Mat Sub Machines Accessed 7 | . 7 . Terminals 5 | . 5 . Fabricators . | . . . Repair Stations . | . . . Recycling Units 2 | . 2 . Scanalyzers . | . . . Garrison Access . | . . . Total Hacks 17 | . 17 . Successful 8 | . 8 . Failed 9 | . 9 . Catastrophic 1 | . 1 . Database Lockouts . | . . . Manual 16 | . 16 . Terminals 14 | . 14 . Fabricators . | . . . Repair Stations . | . . . Recycling Units 3 | . 3 . Scanalyzers . | . . . Garrison Access . | . . . Terminal Hacks 3 | . 3 . Robot Analysis 2 | . 2 . Prototype ID Bank 1 | . 1 . Fabricator Hacks . | . . . Repair Station Hacks . | . . . Recycling Unit Hacks . | . . . Scanalyzer . | . . . Garrison Access Hacks . | . . . Unauthorized Hacks 5 | . 5 . Terminals 4 | . 4 . Botnet 4 | . 4 . Fabricators . | . . . Repair Stations . | . . . Recycling Units 1 | . 1 . Mask 1 | . 1 . Scanalyzers . | . . . Garrison Access . | . . . Data Cores Recovered . | . . . Used . | . . . Hacking Detections 7 | . 7 . Full Trace Events . | . . . Feedback Events . | . . . Feedback Blocked . | . . . Robot Schematics Acquired . | . . . Robots Built . | . . . Authchips . | . . . Time . | . . . Total Robot Build Rating . | . . . Part Schematics Acquired . | . . . Parts Built . | . . . Authchips . | . . . Time . | . . . Total Part Build Rating . | . . . Parts Repaired . | . . . Time . | . . . Parts Recycled . | . . . Recycled Matter . | . . . Retrieved Matter . | . . . Retrieved Components . | . . . Parts Scanalyzed . | . . . Part Schematics Acquired . | . . . Parts Damaged . | . . . Bothacking | -11 -10 -10 ------------ Run | Yrd Mat Sub Used RIF Installer . | . . . Robots Hacked . | . . . Non-combat . | . . . Combat . | . . . Robot Hacks Applied . | . . . Relay Couplers Released . | . . . Fabnet Peak Effective % . | . . . Robots Rewired . | . . . Allies Hacked . | . . . Hacks Repelled . | . . . Allies | -11 -10 -10 -------- Run | Yrd Mat Sub Total Allies . | . . . Largest Group . | . . . Highest-Rated Group . | . . . Highest-Rated Ally . | . . . Total Orders . | . . . Ally Attacks . | . . . Total Damage . | . . . Kills . | . . . Allies Corrupted . | . . . Allies Melted . | . . . Intel | -11 -10 -10 ------- Run | Yrd Mat Sub Robot Analysis Total 2 | . 2 . Derelict Logs Recovered 2 | . . 2 Drone Launches . | . . . Drone Recoveries . | . . . Exploration | -11 -10 -10 ------------- Run | Yrd Mat Sub Turns Passed 4091 | 25 2633 1433 Spaces Moved 1466 | 18 928 520 Core . | . . . Treads 1448 | . 928 520 Legs 18 | 18 . . Wheels . | . . . Hover . | . . . Flight . | . . . Fastest Speed 120 | 120 160 240 Average Speed 221 | 120 212 240 Slowest Speed 240 | 120 240 240 Overloaded Moves . | . . . Propulsion Burnouts . | . . . Robots Hopped . | . . . Cave-ins Triggered . | . . . Exploration Rate (%) 44 | 2 99 33 Regions Visited 2 Branch Regions 1 Pre-discovered Areas . | . . . Known Exits Taken . | . . . Unknown Exits Taken 2 | 1 1 . Scrap Searched . | . . . Spaces Dug 5 | . 5 . Terrain Destroyed 18 | . 5 13 Melee 2 | . 2 . Projectile 3 | . 3 . AOE 13 | . . 13 Terrain Rammed . | . . . Walls Destroyed . | . . . Machines Disabled . | . . . Actions | -11 -10 -10 --------- Run | Yrd Mat Sub Total 2101 | 19 1438 644 Wait 442 | . 368 74 Move 1464 | 17 927 520 Hop . | . . . Pick Up 25 | . 24 1 Fast Attach 3 | 1 . 2 Attach 8 | . 2 6 Detach . | . . . Swap 30 | . 22 8 Drop 23 | . 18 5 Fire 102 | 1 73 28 Melee 2 | . 2 . Ram . | . . . Kick . | . . . Crush 2 | . 2 . Escape Stasis . | . . . Rewire . | . . . Trap . | . . . Miscellaneous . | . . . Route ------- -11/Scrapyard -10/Materials (discovered 5 exits: [*Mat x3] / [*Min] / [*Sub]) -10/Subcaves (discovered 2 exits: Mat / [*Rec]) History --------- Turn | Location | Event 1 | -11/Scrapyard | Discovered new exit (range 3) 26 | -11/Scrapyard | Entered Materials 312 | -10/Materials | Build established: Mutant 739 | -10/Materials | Discovered new exit (range 13) 1315 | -10/Materials | Discovered new exit (range 12) 1607 | -10/Materials | Discovered new exit (range 14) 1982 | -10/Materials | Discovered new exit (range 16) 2635 | -10/Materials | Discovered new exit (range 10) 2659 | -10/Materials | Entered Subcaves 2669 | -10/Subcaves | Identified exit to Materials 2683 | -10/Subcaves | Learned Materials emergency access door positions 3161 | -10/Subcaves | Core integrity fell below 50% 3194 | -10/Subcaves | Discovered new exit (range 16) 3223 | -10/Subcaves | Shifting Twisted Machinery released Sub. Power Source 3234 | -10/Subcaves | Shifting Twisted Machinery released Hvy. Battle Rifle 3616 | -10/Subcaves | Ambushed by Subdwellers from Twisted Machinery 4079 | -10/Subcaves | Core integrity fell below 20% 4092 | -10/Subcaves | Destroyed by 9U-41L(R) with Subdweller Machine Gun Last Messages --------------- 03669_ Acquired 4 matter. 03677_ Acquired 2 matter. 03774_ Triggered Piercing Trap. 03774_ Spikes shoot up from the floor. 03774_ Critical hit (Impale). 03780_ Triggered Shrapnel Trap. 03780_ An expanding cloud of shrapnel blasts out in all directions. 03787_ Triggered Piercing Trap. 03787_ Spikes shoot up from the floor. 03787_ Critical hit (Impale). 03794_ Triggered Piercing Trap. 03794_ Spikes shoot up from the floor. 03794_ Critical hit (Impale). 03805_ System corrupted: Energy discharge (-32). 03847_ J77JWY W2ZTD,LGGIVQBSWBDGZFQFLQIVU5Y2 03922_ RM-BER(u) tweaks Twisted Machinery. 03960_ System corrupted: Component data lost. 03990_ OGQUKOK7/D5V4QZV3T 04018_ RM-BER(u) tweaks Twisted Machinery. 04080_ Lgt. Cannon destroyed. Map ----- +----------------------------------------------------+ | ## # ## ### ######????#"" | | # ##" # ###???# | | ## ## "#?### | | ?##### ### # # # ^ "### | | ?????## #?## ###### "##^ ## " | | ??????## ##### ##??####"""""## ### " | | ####???####"" #?????####### #?#### # | | #????# """ ##??????????# #????##### | | #????## """"" ##??????????# ##???????#" | | #????##"""""## #????????? #????????#"" | | ##?###" """## #???????? ##????????#"" | | ###""" """"" ##??????? ##?????????##"" | | "" "" """"" ##???????? ##????????????# "" | | """ "" """ ##?###??? #??????????????## | | "" "" " ### ##? #??????????????????# | | # """ ## #??????????????????## | | ## "" #???????????????????? | | ?### #???????????????????? | | ???# ## ## ## ###???????????????????? | | ???# ## ### ## ##??????????????????????? | | ???# ##?##### #??????????????????????? | | ???# ###??????## ##??????????????????????? | | ???# "#####?????????# ##??????????????????????? | | ???# ####????????????## #??????????????????????? | | ???###???????????????# "" #???#??????????????????? | | ?????????????????##### ""@### #??????????????????? | | ????????????????## """" ""R #??????????????????? | | ????????????????# """" " % ##?????????????????? | | ????????????????## """" % #?????????????????? | | ?????????????????## " " #?????????????????? | | ??????????????????# """## #????????????????? | | ????????????????# """#? #????????????????? | | ????????????????# ""R#? #????????????????? | | ????????????????### ##? ##????????????????? | | ??????????????????##" ???# #?????????????????? | | ???????????????????#""""???? #?????????????????? | | ?????????????????????? "????# ?????????????????? | | ????????????????????????????? ????????????????? | | ????????????????????????????? ???????????????? | | ????????????????????????????? ???????????????? | | ?????????????????????????????? ??????????????? | | ??????????????????????????????#??????????????????? | | ?????????????????????????????????????????????????? | | ?????????????????????????????????????????????????? | | ?????????????????????????????????????????????????? | | ?????????????????????????????????????????????????? | | ?????????????????????????????????????????????????? | | ?????????????????????????????????????????????????? | | ?????????????????????????????????????????????????? | | ?????????????????????????????????????????????????? | +----------------------------------------------------+ Best States ------------- Heat Dissipation 47 Energy Generation 15 Energy Capacity 250 Matter Stores 300 Matter Capacity 300 Sight Range 16 Terrain Scan Range 16 Terrain Scan Density 10 Armor Coverage 150 Evasion (%) 45 Recoil Reduction 2 Item Schematics ----------------- None Robot Schematics ------------------ None Fabricated ------------ Nothing Alien Tech Used ----------------- None Achievements -------------- None Challenges ------------ None Game ------ Seed LobotomyLatentSuite Manual? 0 Play Time 00:18:31 Cumulative 109.1 hours Start 2024.09.18 @ 14:48:10 End 2024.09.18 @ 15:05:05 Sessions 1 Manual Loads 0 Difficulty Rogue Special Mode None Game No. 151 Rogue 151 Adventurer 0 Explorer 0 Win Type - Total 1 Types 1/0/0/0/0/0/0/0/0 Lore% 22 Gallery% 56 Achievement% 44 Wizard Run 0 Options --------- Layout 0 ASCII 0 Keyboard 0 Movement Mouse Keybinds 1 Fullscreen 1 Font 18/TerminusBold Map View 76x50 Zoom Use 0% Tactical HUD 1 Map Filters NONE Filters NONE Steam 1 RUN: e42b9fa2-ee45-43f4-b57c-21055e9e27fc